bitfinex/quotes_ETHUSD_20230110
["timestamp","ask_amount","ask_price","bid_price","bid_amount"]
[1673367814282,6.93291946,1332.5,1332.4,1.97151162]
[1673367814523,14.49160946,1332.5,1332.4,1.97151162]
[1673367815379,6.98691946,1332.5,1332.4,1.97151162]
[1673367815607,4.08166064,1332.5,1332.4,1.97151162]
[1673367815915,4.02966064,1332.5,1332.4,1.97151162]
[1673367816217,4.02766064,1332.5,1332.4,1.97151162]
[1673367816742,0.23,1332.5,1332.4,9.47676162]
[1673367816954,2.44570759,1332.6,1332.4,2.03751162]
[1673367817127,2.44570759,1332.6,1332.4,0.10910218]
[1673367817128,6.24336823,1332.6,1332.4,0.10910218]
[1673367817336,6.29736823,1332.6,1332.4,3.09088757]
[1673367817674,6.29936823,1332.6,1332.4,0.10910218]
[1673367818004,6.29736823,1332.6,1332.4,3.09088147]
[1673367818221,6.29936823,1332.6,1332.4,0.10910218]
[1673367818412,6.29736823,1332.6,1332.4,0.10910218]
[1673367818895,6.29736823,1332.6,1332.4,0.10589772]
[1673367821013,13.80158823,1332.6,1332.4,0.10589772]
[1673367824217,6.29736823,1332.6,1332.4,0.10589772]
[1673367826520,8.53487026,1332.6,1332.4,0.10589772]
[1673367826844,23.8517143,1332.5,1332.4,0.10589772]
[1673367827157,34.6404043,1332.5,1332.4,0.10589772]
[1673367827516,31.83323267,1332.5,1332.4,0.10589772]
[1673367828002,35.2034043,1332.5,1332.4,0.10589772]
[1673367828307,35.23204979,1332.5,1332.4,0.10589772]
[1673367828684,34.66904979,1332.5,1332.4,0.10589772]
[1673367829788,27.16435979,1332.5,1332.4,0.10589772]
[1673367830146,12.15497979,1332.5,1332.4,0.10589772]
[1673367830358,7.08166064,1332.5,1332.4,0.10589772]
[1673367833351,14.58635064,1332.5,1332.4,0.10589772]
[1673367836388,7.08166064,1332.5,1332.4,0.10589772]
[1673367836601,7.08166064,1332.5,1332.4,7.61114772]
[1673367836806,7.08166064,1332.5,1332.4,0.17189772]
[1673367837064,7.08166064,1332.5,1332.4,0.10589772]
[1673367839330,3.284,1332.5,1332.4,0.10589772]
[1673367839537,3.0,1332.5,1332.4,0.10589772]
[1673367839802,3.0,1332.5,1332.4,0.10205948]
[1673367839964,7.63431084,1332.5,1332.4,0.10205948]
[1673367840175,32.66988287,1332.5,1332.4,0.10205948]
[1673367840416,25.16519287,1332.5,1332.4,0.10205948]
[1673367841009,17.66050287,1332.5,1332.4,0.10205948]
[1673367842478,10.15581287,1332.5,1332.4,0.10205948]
[1673367843162,7.91831084,1332.5,1332.4,0.10205948]
[1673367843356,3.284,1332.5,1332.4,7.60730948]
[1673367843569,3.0,1332.5,1332.4,0.16805948]
[1673367843743,3.0,1332.5,1332.4,0.10205948]
[1673367844209,5.23750203,1332.5,1332.4,0.10205948]
[1673367844417,5.29150203,1332.5,1332.4,0.10205948]
[1673367844739,3.054,1332.5,1332.4,0.10205948]
[1673367845062,3.0,1332.5,1332.4,0.10205948]
[1673367846632,3.0,1332.5,1332.4,24.48010114]
[1673367846848,3.066,1332.6,1332.4,27.12489494]
[1673367847001,0.066,1332.7,1332.5,1.86212616]
[1673367847211,2.29350203,1332.8,1332.6,22.51236]
[1673367847491,2.23750203,1332.8,1332.6,22.57836]
[1673367848309,11.66931571,1332.9,1332.6,22.57836]
[1673367848310,13.90681774,1332.9,1332.6,22.57836]
[1673367848478,13.89681774,1332.9,1332.6,25.97796965]
[1673367849047,2.23750203,1332.8,1332.6,25.97796965]
[1673367849210,13.90681774,1332.9,1332.6,25.97796965]
[1673367849423,13.89681774,1332.9,1332.6,25.97796965]
[1673367850209,2.23750203,1332.8,1332.6,25.97796965]
[1673367850520,13.90681774,1332.9,1332.6,25.97796965]
[1673367850737,13.89681774,1332.9,1332.6,25.97796965]
[1673367851867,2.23750203,1332.8,1332.6,3.46560965]
[1673367852085,2.23750203,1332.8,1332.5,0.066]
[1673367852308,2.23750203,1332.8,1332.5,22.51381]
[1673367852461,2.23750203,1332.8,1332.5,15.07512]
[1673367852937,2.23750203,1332.8,1332.5,22.57981]
[1673367853157,2.23750203,1332.8,1332.5,26.96442865]
[1673367854284,2.23750203,1332.8,1332.5,19.45973865]
[1673367854713,2.23750203,1332.8,1332.5,26.96442865]
[1673367855042,2.23750203,1332.8,1332.5,26.96860249]
[1673367855773,2.23750203,1332.8,1332.5,19.46391249]
[1673367856299,2.23750203,1332.8,1332.5,26.96860249]
[1673367856828,2.23750203,1332.8,1332.5,19.46391249]
[1673367857419,7.50356,1332.7,1332.5,0.07017384]
[1673367857744,7.50356,1332.7,1332.4,10.96835328]
[1673367857745,2.5,1332.6,1332.4,30.97041948]
[1673367857970,6.09116267,1332.7,1332.4,30.97041948]
[1673367857971,6.10116267,1332.7,1332.4,30.97041948]
[1673367858180,6.10116267,1332.7,1332.4,0.16805948]
[1673367858181,12.0723343,1332.6,1332.4,0.16805948]
[1673367858363,3.79766064,1332.5,1332.4,0.10205948]
[1673367858568,6.79766064,1332.5,1332.4,0.10205948]
[1673367858775,17.08635064,1332.5,1332.4,0.10205948]
[1673367860291,14.58635064,1332.5,1332.4,0.10205948]
[1673367860461,3.054,1332.5,1332.4,0.10205948]
[1673367860829,3.0,1332.5,1332.4,0.10205948]
[1673367862359,10.50469,1332.5,1332.4,0.10205948]
[1673367862616,10.55869,1332.5,1332.4,0.10205948]
[1673367865749,3.054,1332.5,1332.4,0.10205948]
[1673367865926,15.63777,1332.6,1332.4,0.10205948]
[1673367866136,0.617,1332.6,1332.4,0.10205948]
[1673367866403,0.6289,1332.7,1332.4,15.11243948]
[1673367866564,13.78507366,1332.8,1332.4,17.45244991]
[1673367866782,28.78137366,1332.8,1332.4,9.94719991]
[1673367867019,21.27809366,1332.8,1332.4,9.94719991]
[1673367867239,10.96790203,1332.8,1332.4,17.45244991]
[1673367867452,13.77507366,1332.8,1332.4,17.45244991]
[1673367869302,21.27825366,1332.8,1332.4,17.45244991]
[1673367869520,13.77507366,1332.8,1332.4,24.95769991]
[1673367869757,10.96790203,1332.8,1332.4,17.45244991]
[1673367870347,18.47094203,1332.8,1332.4,17.45244991]
[1673367871178,8.7304,1332.8,1332.4,24.95769991]
[1673367871389,8.1675,1332.8,1332.4,24.95769991]
[1673367871659,8.1675,1332.8,1332.4,27.75099134]
[1673367871830,8.1675,1332.8,1332.4,28.87046335]
[1673367872177,8.1675,1332.8,1332.4,27.75099134]
[1673367872337,10.40500203,1332.8,1332.4,27.75099134]
[1673367872763,8.1675,1332.8,1332.4,27.75099134]
[1673367874288,8.1675,1332.8,1332.4,20.24574134]
[1673367874445,20.71545366,1332.8,1332.4,17.44972541]
[1673367874659,2.23750203,1332.7,1332.4,17.44972541]
[1673367874866,20.72545366,1332.8,1332.4,17.44972541]
[1673367875123,20.71545366,1332.8,1332.4,17.44972541]
[1673367875804,9.0723343,1332.7,1332.4,0.16533498]
[1673367876020,13.82520267,1332.7,1332.4,0.09933498]
[1673367880148,21.32924267,1332.7,1332.4,0.09933498]
[1673367881181,31.6404543,1332.7,1332.4,0.09933498]
[1673367881388,2.23750203,1332.6,1332.4,0.09933498]
[1673367881609,2.23750203,1332.6,1332.4,7.60447498]
[1673367881911,6.33116267,1332.7,1332.4,10.70419296]
[1673367882241,6.33116267,1332.7,1332.4,3.19905296]
[1673367882242,13.82481267,1332.7,1332.4,3.19905296]
[1673367882455,13.82481267,1332.7,1332.4,3.13305296]
[1673367882667,13.82190746,1332.7,1332.4,3.13305296]
[1673367883052,21.32555746,1332.7,1332.4,3.13305296]
[1673367883262,21.32555746,1332.7,1332.4,0.09933498]
[1673367885999,3.79766064,1332.6,1332.4,0.09933498]
[1673367886415,11.30188064,1332.6,1332.4,0.09933498]
[1673367886624,11.35588064,1332.6,1332.4,0.09933498]
[1673367888386,3.85166064,1332.6,1332.4,0.09933498]
[1673367888611,3.79766064,1332.6,1332.4,0.09933498]
[1673367889295,11.30179064,1332.6,1332.4,0.09933498]
[1673367889487,11.35579064,1332.6,1332.4,0.09933498]
[1673367893165,13.59329267,1332.6,1332.4,0.09933498]
[1673367894011,16.7582691,1332.6,1332.4,0.09933498]
[1673367894215,11.3423343,1332.5,1332.4,0.09933498]
[1673367894424,31.90290227,1332.5,1332.4,0.09933498]
[1673367894681,34.71187813,1332.5,1332.4,0.09933498]
[1673367894958,31.9047065,1332.5,1332.4,0.09933498]
[1673367895171,34.70575127,1332.5,1332.4,0.09933498]
[1673367898481,32.20575127,1332.5,1332.4,0.09933498]
[1673367906870,32.20575127,1332.5,1332.4,0.09640909]
[1673367908495,7.44570541,1332.5,1332.4,0.09640909]
[1673367910005,22.45508541,1332.5,1332.4,0.09640909]
[1673367910139,39.69478054,1332.5,1332.4,0.09640909]
[1673367910357,41.00989955,1332.5,1332.4,0.09640909]
[1673367910701,37.08206605,1332.5,1332.4,0.09640909]
[1673367911012,36.32994704,1332.5,1332.4,0.09640909]
[1673367911175,36.39829704,1332.5,1332.4,0.09640909]
[1673367911823,38.6422836,1332.5,1332.4,0.09640909]
[1673367912682,36.39829704,1332.5,1332.4,0.09640909]
[1673367913332,38.64268005,1332.5,1332.4,0.09640909]
[1673367913579,20.82612842,1332.5,1332.4,0.09640909]
[1673367913706,20.59612842,1332.5,1332.4,0.09640909]
[1673367913914,20.03312842,1332.5,1332.4,0.09640909]
[1673367915116,20.26312842,1332.5,1332.4,0.09640909]
[1673367915809,12.75843842,1332.5,1332.4,0.09640909]
[1673367916022,10.51405541,1332.5,1332.4,0.09640909]
[1673367916241,7.15001064,1332.5,1332.4,0.09640909]
[1673367916590,0.35235,1332.5,1332.4,1.37040909]
[1673367916902,0.35235,1332.5,1332.4,8.87565909]
[1673367916903,0.07035,1332.5,1332.4,8.87565909]
[1673367917121,0.06835,1332.5,1332.4,8.94165909]
[1673367917326,0.06835,1332.5,1332.4,1.43640909]
[1673367917593,0.06835,1332.5,1332.4,10.53262849]
[1673367917762,0.06835,1332.5,1332.4,10.59862849]
[1673367917933,0.056,1332.6,1332.4,25.60912849]
[1673367918148,5.05155464,1332.7,1332.4,18.10387849]
[1673367918341,5.10755464,1332.7,1332.4,18.10387849]
[1673367918546,5.10755464,1332.7,1332.4,10.59862849]
[1673367919216,12.61113464,1332.7,1332.4,10.59862849]
[1673367919598,5.10755464,1332.7,1332.4,10.59862849]
[1673367919804,12.61116464,1332.7,1332.4,3.09337849]
[1673367920082,12.61116464,1332.7,1332.4,3.02737849]
[1673367920281,2.30038301,1332.7,1332.4,10.53249849]
[1673367920439,2.30038301,1332.7,1332.4,18.10374849]
[1673367920440,5.24438301,1332.7,1332.4,18.10374849]
[1673367920650,0.056,1332.7,1332.4,25.60899849]
[1673367920860,20.93698301,1332.8,1332.4,25.60899849]
[1673367921960,23.74415464,1332.8,1332.4,25.60899849]
[1673367922331,20.93698301,1332.8,1332.4,25.60899849]
[1673367922585,13.26398301,1332.8,1332.4,25.60899849]
[1673367924536,16.07115464,1332.8,1332.4,25.60899849]
[1673367924752,13.26398301,1332.8,1332.4,25.60899849]
[1673367927907,16.07115464,1332.8,1332.4,25.60899849]
[1673367929275,23.57416464,1332.8,1332.4,18.10374849]
[1673367929489,2.24438301,1332.7,1332.4,0.16240909]
[1673367929730,12.24811301,1332.7,1332.4,0.09640909]
[1673367929918,12.30411301,1332.7,1332.4,0.09640909]
[1673367930136,9.80411301,1332.7,1332.4,0.09640909]
[1673367931001,23.91267528,1332.7,1332.4,0.09640909]
[1673367931215,17.25329301,1332.6,1332.4,0.09640909]
[1673367931392,17.30729301,1332.6,1332.4,0.09640909]
[1673367932250,24.81191301,1332.6,1332.4,0.09640909]
[1673367932697,24.81191301,1332.6,1332.2,30.27117668]
[1673367932911,26.30908768,1332.6,1332.2,24.61149832]
[1673367933277,18.80163778,1332.6,1332.2,15.58979832]
[1673367933534,11.29701778,1332.6,1332.2,23.09617832]
[1673367933748,11.29701778,1332.6,1332.2,15.58979832]
[1673367933749,18.80163778,1332.6,1332.2,15.58979832]
[1673367934275,11.29701778,1332.6,1332.2,23.09617832]
[1673367934434,11.29701778,1332.6,1332.2,25.14092756]
[1673367936062,22.59929842,1332.6,1332.2,17.63454756]
[1673367936218,22.59929842,1332.6,1332.2,15.58979832]
[1673367937305,22.59929842,1332.6,1332.2,23.09617832]
[1673367938024,15.09467842,1332.6,1332.2,23.09617832]
[1673367938237,15.65767842,1332.6,1332.2,23.09617832]
[1673367938466,8.15338842,1332.6,1332.2,23.09617832]
[1673367938690,8.15338842,1332.6,1332.2,34.44012406]
[1673367938910,7.59038842,1332.6,1332.2,37.23388308]
[1673367940433,15.09450842,1332.6,1332.2,29.72750308]
[1673367941109,15.09450842,1332.6,1332.2,34.44012406]
[1673367941543,15.09450842,1332.6,1332.2,37.23381487]
[1673367941698,22.59862842,1332.6,1332.2,23.09617832]
[1673367941909,22.59862842,1332.6,1332.2,15.58979832]
[1673367942121,30.10274842,1332.6,1332.2,8.08353832]
[1673367942436,32.90992005,1332.6,1332.2,8.08353832]
[1673367942652,40.81772005,1332.6,1332.2,8.08353832]
[1673367943283,38.01054842,1332.6,1332.2,8.08353832]
[1673367943964,40.81772005,1332.6,1332.2,8.08353832]
[1673367944267,40.81772005,1332.6,1332.2,15.58989832]
[1673367944578,9.74636311,1332.5,1332.2,8.08353832]
[1673367944774,14.44520412,1332.5,1332.2,8.08353832]
[1673367944985,13.88220412,1332.5,1332.2,8.08353832]
[1673367945369,21.38701412,1332.5,1332.2,8.08353832]
[1673367945790,28.89182412,1332.5,1332.2,8.08353832]
[1673367946455,32.68948476,1332.5,1332.2,8.08353832]
[1673367947515,3.79766064,1332.4,1332.2,0.066]
[1673367947840,3.79766064,1332.4,1332.1,0.85980807]
[1673367947841,22.56340927,1332.4,1332.1,0.85980807]
[1673367948045,22.61740927,1332.4,1332.1,0.85980807]
[1673367948423,12.87009616,1332.4,1332.1,0.85980807]
[1673367949627,20.37585616,1332.4,1332.1,0.85980807]
[1673367952095,0.617,1332.4,1332.1,15.87368807]
[1673367952309,13.97665311,1332.5,1332.1,23.44662807]
[1673367952574,17.76231375,1332.5,1332.1,23.44662807]
[1673367952881,0.23,1332.4,1332.1,26.24047259]
[1673367953667,0.23,1332.4,1332.1,26.23704821]
[1673367953933,15.53276064,1332.5,1332.1,31.70325867]
[1673367954145,15.52076064,1332.5,1332.1,31.70325867]
[1673367954360,11.7231,1332.5,1332.1,31.70325867]
[1673367954511,11.7231,1332.5,1332.3,22.51743]
[1673367954512,0.054,1332.5,1332.3,22.51743]
[1673367954719,2.29555311,1332.6,1332.3,26.022019]
[1673367954946,16.18272474,1332.7,1332.3,26.022019]
[1673367955174,16.17272474,1332.7,1332.3,26.022019]
[1673367955435,13.36555311,1332.7,1332.3,26.022019]
[1673367956256,16.17272474,1332.7,1332.3,26.022019]
[1673367956488,2.24155311,1332.6,1332.3,3.504589]
[1673367956712,2.24155311,1332.6,1332.2,23.15136]
[1673367956873,0.563,1332.5,1332.2,30.65746]
[1673367957081,2.80455311,1332.6,1332.2,33.45112522]
[1673367957404,10.30869311,1332.6,1332.2,25.94477522]
[1673367957649,10.30869311,1332.6,1332.2,30.65749]
[1673367957650,2.85855311,1332.6,1332.2,30.65749]
[1673367957852,2.80455311,1332.6,1332.3,2.5]
[1673367958185,2.80455311,1332.6,1332.3,10.00566]
[1673367958356,10.30879311,1332.6,1332.3,2.566]
[1673367958553,10.36279311,1332.6,1332.3,2.5]
[1673367958762,17.86727311,1332.6,1332.2,23.27845734]
[1673367959132,17.86727311,1332.6,1332.2,12.97888914]
[1673367959827,10.36291311,1332.6,1332.2,12.97888914]
[1673367960044,2.85855311,1332.6,1332.2,35.49781914]
[1673367960389,2.80455311,1332.6,1332.2,30.7851146]
[1673367960547,0.563,1332.6,1332.2,38.2914946]
[1673367961177,0.563,1332.6,1332.2,39.41096661]
[1673367961389,0.563,1332.6,1332.3,2.5]
[1673367961646,0.563,1332.6,1332.4,7.50525]
[1673367961964,0.563,1332.6,1332.4,7.57125]
[1673367962177,0.50641301,1332.5,1332.4,7.57125]
[1673367962547,0.066,1332.7,1332.5,0.50641301]
[1673367962836,32.73035311,1332.9,1332.6,22.51236]
[1673367963052,0.056,1332.9,1332.6,30.94987749]
[1673367963370,2.24155311,1333.0,1332.6,30.94987749]
[1673367963530,2.24155311,1333.0,1332.6,34.86317233]
[1673367963741,2.80435311,1333.0,1332.6,30.94987749]
[1673367964400,5.61152474,1333.0,1332.6,30.94987749]
[1673367964627,2.86035311,1333.0,1332.6,30.94987749]
[1673367964842,2.80435311,1333.0,1332.6,30.94987749]
[1673367965003,2.24155311,1333.0,1332.6,30.94987749]
[1673367965644,2.23863115,1333.0,1332.6,30.94987749]
[1673367966011,4.73863115,1333.0,1332.6,30.94987749]
[1673367966159,4.73863115,1333.0,1332.6,27.15221685]
[1673367966373,19.74272115,1333.0,1332.6,4.63985685]
[1673367966617,30.10810278,1333.0,1332.5,4.48570785]
[1673367966832,12.29651115,1333.0,1332.5,19.42894785]
[1673367967043,4.79463115,1333.0,1332.5,26.99963785]
[1673367967214,2.23863115,1333.0,1332.5,26.99963785]
[1673367967430,4.73863115,1333.0,1332.5,26.99963785]
[1673367967641,2.23863115,1333.0,1332.5,31.45147684]
[1673367968265,12.54768278,1333.0,1332.5,31.45147684]
[1673367968480,12.60368278,1333.0,1332.5,31.45147684]
[1673367969043,20.34708278,1333.0,1332.5,31.45147684]
[1673367970353,17.53991115,1333.0,1332.5,31.45147684]
[1673367970528,20.34708278,1333.0,1332.5,31.45147684]
[1673367970683,17.53991115,1333.0,1332.5,31.45147684]
[1673367971205,20.34708278,1333.0,1332.5,31.45147684]
[1673367971630,17.53991115,1333.0,1332.5,31.45147684]
[1673367975233,2.23863115,1332.9,1332.5,0.57241301]
[1673367975449,19.74394115,1332.9,1332.5,0.50641301]
[1673367975622,19.79994115,1332.9,1332.5,8.01109301]
[1673367975840,2.0,1332.8,1332.5,0.57241301]
[1673367976059,2.0,1332.8,1332.5,0.50641301]
[1673367976268,9.50323,1332.8,1332.5,0.50641301]
[1673367976470,9.55923,1332.8,1332.5,0.50641301]
[1673367976718,16.34449476,1332.8,1332.5,0.50641301]
[1673367976927,8.84126476,1332.8,1332.5,8.01102301]
[1673367977124,8.84126476,1332.8,1332.5,8.07702301]
[1673367977890,7.73371,1332.7,1332.5,0.57241301]
[1673367978194,2.5,1332.6,1332.5,0.50641301]
[1673367979238,39.47365179,1332.6,1332.5,0.50641301]
[1673367979396,44.23948711,1332.6,1332.5,0.50641301]
[1673367979612,47.23381674,1332.6,1332.5,0.50641301]
[1673367979871,48.21691208,1332.6,1332.5,0.50641301]
[1673367980038,52.69891208,1332.6,1332.1,0.85638369]
[1673367980248,2.24204911,1332.4,1332.1,0.85638369]
[1673367980462,18.80928064,1332.3,1332.1,0.85638369]
[1673367980675,2.845,1332.2,1332.1,0.37624369]
[1673367981028,10.35138,1332.2,1332.1,0.37624369]
[1673367981239,1.623,1332.2,1332.1,0.37624369]
[1673367981396,1.571,1332.2,1332.1,0.37624369]
[1673367981823,20.59483064,1332.2,1332.1,0.37624369]
[1673367982091,28.15321064,1332.2,1332.1,0.37624369]
[1673367983723,28.71631064,1332.2,1332.1,0.37624369]
[1673367984143,13.70355064,1332.2,1332.1,0.37624369]
[1673367984367,6.19717064,1332.2,1332.1,0.37624369]
[1673367984596,6.19917064,1332.2,1332.1,0.37624369]
[1673367984808,13.70555064,1332.2,1332.1,0.37624369]
[1673367985234,21.20993064,1332.2,1332.1,0.37624369]
[1673367986268,28.71631064,1332.2,1332.1,0.37624369]
[1673367986927,21.20993064,1332.2,1332.1,0.37624369]
[1673367987514,13.70355064,1332.2,1332.1,0.37624369]
[1673367987833,21.20993064,1332.2,1332.1,0.37624369]
[1673367988032,13.70355064,1332.2,1332.1,0.37624369]
[1673367988258,6.19717064,1332.2,1332.1,0.37624369]
[1673367988492,6.19917064,1332.2,1332.1,0.37624369]
[1673367988704,6.19917064,1332.2,1332.1,7.88318369]
[1673367989033,6.19917064,1332.2,1332.1,0.44224369]
[1673367989341,1.395,1332.2,1332.1,0.37624369]
[1673367989556,1.341,1332.2,1332.1,0.37624369]
[1673367990177,5.13866064,1332.2,1332.1,0.37624369]
[1673367990390,20.76852064,1332.2,1332.1,0.37624369]
[1673367990601,23.2620637,1332.2,1332.1,0.37624369]
[1673367991002,8.2493037,1332.2,1332.1,0.37624369]
[1673367991546,8.2513037,1332.2,1332.1,0.37624369]
[1673367994882,23.2640637,1332.2,1332.1,0.37624369]
[1673367995079,8.2493037,1332.2,1332.1,0.37624369]
[1673367995323,8.2513037,1332.2,1332.1,0.37624369]
[1673367995717,30.7684437,1332.2,1332.1,0.37624369]
[1673367995968,35.41939141,1332.2,1332.1,0.37624369]
[1673367996138,39.73461042,1332.2,1332.1,0.37624369]
[1673367996339,38.98249141,1332.2,1332.1,0.37624369]
[1673367996761,49.99099141,1332.2,1332.1,0.37624369]
[1673368000544,23.57302271,1332.2,1332.1,0.37624369]
[1673368001069,23.57502271,1332.2,1332.1,0.37624369]
[1673368001507,12.56652271,1332.2,1332.1,0.37624369]
[1673368001944,20.07290271,1332.2,1332.1,0.37624369]
[1673368002332,27.57728271,1332.2,1332.1,0.37624369]
[1673368002784,20.07090271,1332.2,1332.1,0.37624369]
[1673368003203,27.57928271,1332.2,1332.1,0.37624369]
[1673368003385,27.57728271,1332.2,1332.1,0.37624369]
[1673368003593,1.36721901,1332.2,1332.1,1.65024369]
[1673368003835,5.014,1332.3,1332.1,16.66412369]
[1673368004052,5.002,1332.3,1332.1,16.7280819]
[1673368004226,5.002,1332.3,1332.1,15.4540819]
[1673368004440,5.002,1332.3,1332.1,0.4402019]
[1673368004643,5.002,1332.3,1332.1,0.3742019]
[1673368004644,19.47687964,1332.3,1332.1,0.3742019]
[1673368004904,6.29766064,1332.2,1332.1,0.3742019]
[1673368005117,21.36442064,1332.2,1332.1,0.3742019]
[1673368005286,18.86242064,1332.2,1332.1,0.3742019]
[1673368005486,26.36880064,1332.2,1332.1,0.3742019]
[1673368005697,32.72648284,1332.2,1332.1,0.3742019]
[1673368005916,32.95648284,1332.2,1332.1,0.3742019]
[1673368006898,25.45010284,1332.2,1332.1,0.3742019]
[1673368007303,17.94372284,1332.2,1332.1,0.3742019]
[1673368008700,10.43734284,1332.2,1332.1,0.3742019]
[1673368008911,10.43934284,1332.2,1332.1,0.3742019]
[1673368009376,32.95648284,1332.2,1332.1,0.3742019]
[1673368014592,35.19853195,1332.2,1332.1,0.3742019]
[1673368015429,20.18577195,1332.2,1332.1,0.3742019]
[1673368015652,10.20734284,1332.2,1332.1,0.3742019]
[1673368015895,6.85166064,1332.2,1332.1,0.3742019]
[1673368016114,0.054,1332.2,1332.1,24.1690219]
[1673368016440,5.002,1332.3,1332.1,1.7142019]
[1673368016755,5.002,1332.3,1332.1,9.1551419]
[1673368016756,8.79966064,1332.3,1332.1,9.1551419]
[1673368016984,8.79966064,1332.3,1332.1,0.4402019]
[1673368017131,11.04170975,1332.3,1332.1,0.3742019]
[1673368017543,18.54757975,1332.3,1332.1,0.3742019]
[1673368017768,0.23,1332.2,1332.1,0.3742019]
[1673368022492,0.23,1332.2,1332.1,9.1551419]
[1673368022704,0.23,1332.2,1332.1,25.17029875]
[1673368023107,5.014,1332.3,1332.1,25.17029875]
[1673368023270,5.002,1332.3,1332.1,25.17029875]
[1673368023845,5.002,1332.3,1332.1,17.66335875]
[1673368024535,5.002,1332.3,1332.1,10.15641875]
[1673368025147,7.24404911,1332.3,1332.1,10.15641875]
[1673368026116,7.24404911,1332.3,1332.1,1.37547875]
[1673368026261,7.24404911,1332.3,1332.1,8.81639875]
[1673368026470,3.79766064,1332.2,1332.1,0.4402019]
[1673368026700,3.79766064,1332.2,1332.1,0.3742019]
[1673368026701,11.53404064,1332.2,1332.1,0.3742019]
[1673368026946,4.08166064,1332.2,1332.1,0.3742019]
[1673368027259,0.23,1332.2,1332.1,7.8811419]
[1673368027469,0.23,1332.2,1332.1,0.4402019]
[1673368027683,0.23,1332.2,1332.1,7.8811419]
[1673368027847,0.23,1332.2,1332.1,7.9471419]
[1673368028834,0.23,1332.2,1332.1,15.4540819]
[1673368029538,1.571,1332.2,1332.1,0.4402019]
[1673368029731,0.23,1332.2,1332.1,7.8811419]
[1673368029946,0.23,1332.2,1332.1,15.4540819]
[1673368030400,1.571,1332.2,1332.1,0.4402019]
[1673368030648,1.571,1332.2,1332.1,0.3742019]
[1673368031481,5.36866064,1332.2,1332.1,0.3742019]
[1673368031778,9.20743686,1332.2,1332.1,0.3742019]
[1673368032732,14.00999824,1332.2,1332.1,0.3742019]
[1673368032898,37.85018913,1332.2,1332.1,0.3742019]
[1673368033111,38.94445645,1332.2,1332.1,0.3742019]
[1673368033465,27.53924775,1332.2,1332.1,0.3742019]
[1673368033621,22.842046,1332.2,1332.1,0.3742019]
[1673368036244,15.58355389,1332.2,1332.1,0.3742019]
[1673368036454,15.58555389,1332.2,1332.1,0.3742019]
[1673368036703,13.337666,1332.2,1332.1,0.3742019]
[1673368037119,15.58573192,1332.2,1332.1,0.3742019]
[1673368038503,23.09211192,1332.2,1332.1,0.3742019]
[1673368038822,12.77655367,1332.2,1332.1,0.3742019]
[1673368039399,6.09972656,1332.2,1332.1,7.885317]
[1673368039644,0.054,1332.2,1332.1,22.965197]
[1673368039990,7.77116592,1332.3,1332.1,22.965197]
[1673368039991,5.5651,1332.3,1332.1,22.965197]
[1673368040292,5.5651,1332.3,1332.1,37.42175074]
[1673368040293,0.052,1332.3,1332.1,37.42175074]
[1673368040503,2.80917825,1332.5,1332.1,37.42175074]
[1673368040504,5.12324417,1332.5,1332.1,37.42175074]
[1673368040826,5.12324417,1332.5,1332.3,15.01162]
[1673368040827,8.90690481,1332.5,1332.3,15.01162]
[1673368041038,8.90690481,1332.5,1332.3,7.57181]
[1673368041183,8.90690481,1332.5,1332.3,0.066]
[1673368041558,8.90690481,1332.5,1332.3,7.50563]
[1673368041708,8.90690481,1332.5,1332.3,7.57163]
[1673368042091,8.90690481,1332.5,1332.3,0.066]
[1673368042276,8.90690481,1332.5,1332.2,7.57186]
[1673368042441,8.90690481,1332.5,1332.2,11.00403393]
[1673368042657,8.90690481,1332.5,1332.2,26.01679393]
[1673368043018,0.23,1332.4,1332.2,26.01679393]
[1673368043244,0.23,1332.4,1332.2,11.00403393]
[1673368043474,2.47806592,1332.4,1332.2,3.49817393]
[1673368043771,6.27572656,1332.4,1332.1,16.2482719]
[1673368043965,2.24806592,1332.3,1332.1,7.9468719]
[1673368044133,6.88883889,1332.4,1332.1,7.9468719]
[1673368044134,9.15090481,1332.4,1332.1,7.9468719]
[1673368044347,8.85490481,1332.3,1332.1,0.4402019]
[1673368044553,8.85490481,1332.3,1332.1,0.3742019]
[1673368044554,6.31906592,1332.2,1332.1,0.3742019]
[1673368044768,6.37106592,1332.2,1332.1,0.3742019]
[1673368046475,3.87106592,1332.2,1332.1,0.3742019]
[1673368046735,3.81906592,1332.2,1332.1,0.3742019]
[1673368048313,1.571,1332.2,1332.1,0.3742019]
[1673368049257,2.47806592,1332.2,1332.1,0.3742019]
[1673368049575,0.23,1332.2,1332.1,7.8811419]
[1673368049886,0.23,1332.2,1332.1,7.9471419]
[1673368050497,0.23,1332.2,1332.1,15.4540819]
[1673368050681,0.23,1332.2,1332.1,25.27031875]
[1673368051565,0.23,1332.2,1332.1,17.76337875]
[1673368052097,0.23,1332.2,1332.1,10.25643875]
[1673368052268,0.23,1332.2,1332.1,0.4402019]
[1673368052475,0.23,1332.2,1332.1,7.8811419]
[1673368052688,0.23,1332.2,1332.1,7.9471419]
[1673368053133,0.23,1332.2,1332.1,15.4540819]
[1673368053376,0.23,1332.2,1332.1,7.9471419]
[1673368054606,0.23,1332.2,1332.1,15.4540819]
[1673368055764,0.23,1332.2,1332.1,7.9471419]
[1673368055975,1.448,1332.2,1332.1,0.4402019]
[1673368056222,1.448,1332.2,1332.1,0.3742019]
[1673368056453,0.23,1332.2,1332.1,7.8811419]
[1673368056674,0.23,1332.2,1332.1,7.9471419]
[1673368057398,2.47806592,1332.2,1332.1,7.9471419]
[1673368057548,0.23,1332.2,1332.1,7.9471419]
[1673368057759,0.23,1332.2,1332.1,15.4540819]
[1673368058022,0.23,1332.2,1332.1,7.9471419]
[1673368058605,0.23,1332.2,1332.1,15.4540819]
[1673368060280,0.23,1332.2,1332.1,22.9610219]
[1673368060541,0.23,1332.2,1332.1,26.02100175]
[1673368060799,3.0,1332.3,1332.1,26.02100175]
[1673368061121,2.87716592,1332.4,1332.1,26.02100175]
[1673368061394,0.23,1332.3,1332.1,26.02100175]
[1673368061573,0.23,1332.3,1332.1,26.01713355]
[1673368063136,0.066,1332.4,1332.3,0.23]
[1673368063486,16.84434417,1332.5,1332.3,24.02143]
[1673368063487,14.08716592,1332.5,1332.3,24.02143]
[1673368063694,9.09772656,1332.5,1332.3,24.08743]
[1673368063909,0.052,1332.5,1332.3,31.15395563]
[1673368064221,5.10924417,1332.6,1332.3,27.246785]
[1673368064431,2.30006592,1332.6,1332.3,31.15359423]
[1673368064642,2.24806592,1332.6,1332.3,27.246785]
[1673368065227,5.12324417,1332.7,1332.3,27.246785]
[1673368065433,5.11124417,1332.7,1332.3,27.246785]